Workbook

Sheet Mittelhilfstabelle
A2: Stunde | B2: Wind | C2: Luftfeuchtigkeit | D2: Luftdruck | E2: Taupunkttemperatur | F2: Bewölkung | H2: Stunde | I2: Wind | J2: Luftfeuchtigkeit | K2: Luftdruck | L2: Taupunkttemperatur | M2: Bewölkung
A3: 00 | B3: 1 | C3: 96 | D3: 1024.7 | E3: 6.5 | F3: 8 | H3: 00 | I3: 1 | J3: 98 | K3: 1010.4 | L3: 5.5 | M3: 8
A4: 01 | B4: 1 | C4: 96 | D4: 1024.9 | E4: 6.6 | F4: 8 | H4: 01 | I4: 1 | J4: 97 | K4: 1010.2 | L4: 4.7 | M4: 8
A5: 02 | B5: 0 | C5: 97 | D5: 1025.1 | E5: 6.6 | F5: 8 | H5: 02 | I5: 1 | J5: 98 | K5: 1010.6 | L5: 4.5 | M5: 8
A6: 03 | B6: 0 | C6: 98 | D6: 1024.9 | E6: 6.7 | F6: 8 | H6: 03 | I6: 1 | J6: 98 | K6: 1011.2 | L6: 3.9 | M6: 8
A7: 04 | B7: 0 | C7: 98 | D7: 1024.9 | E7: 6.7 | F7: 8 | H7: 04 | I7: 1 | J7: 97 | K7: 1011.9 | L7: 3.3 | M7: 8
A8: 05 | B8: 0 | C8: 96 | D8: 1025.3 | E8: 6.4 | F8: 8 | H8: 05 | I8: 1 | J8: 97 | K8: 1012.6 | L8: 3.2 | M8: 8
A9: 06 | B9: 1 | C9: 94 | D9: 1025.4 | E9: 6.3 | F9: 8 | H9: 06 | I9: 1 | J9: 98 | K9: 1013.5 | L9: 3.2 | M9: 8
A10: 07 | B10: 1 | C10: 94 | D10: 1025.5 | E10: 6.8 | F10: 8 | H10: 07 | I10: 1 | J10: 97 | K10: 1014.4 | L10: 2.8 | M10: 8
A11: 08 | B11: 1 | C11: 91 | D11: 1025.5 | E11: 7 | F11: 8 | H11: 08 | I11: 1 | J11: 97 | K11: 1015.6 | L11: 3 | M11: 8
A12: 09 | B12: 1 | C12: 92 | D12: 1025.6 | E12: 7.4 | F12: 8 | H12: 09 | I12: 1 | J12: 97 | K12: 1016.3 | L12: 3.5 | M12: 8
A13: 10 | H13: 10 | I13: 1 | J13: 96 | K13: 1017.2 | L13: 3.9 | M13: 8
A14: 11 | H14: 11 | I14: 1 | J14: 90 | K14: 1016.9 | L14: 4.7 | M14: 8
A15: 12 | H15: 12 | I15: 1 | J15: 82 | K15: 1017.6 | L15: 4.3 | M15: 7
A16: 13 | H16: 13 | I16: 1 | J16: 82 | K16: 1018 | L16: 5.4 | M16: 7
A17: 14 | H17: 14 | I17: 1 | J17: 75 | K17: 1017.9 | L17: 5 | M17: 7
A18: 15 | H18: 15 | I18: 1 | J18: 73 | K18: 1017.8 | L18: 5.1 | M18: 7
A19: 16 | H19: 16 | I19: 1 | J19: 72 | K19: 1017.8 | L19: 5.2 | M19: 7
A20: 17 | H20: 17 | I20: 1 | J20: 71 | K20: 1017.5 | L20: 5.1 | M20: 7
A21: 18 | H21: 18 | I21: 0 | J21: 75 | K21: 1017.4 | L21: 5.8 | M21: 7
A22: 19 | H22: 19 | I22: 0 | J22: 80 | K22: 1017.5 | L22: 6 | M22: 7
A23: 20 | H23: 20 | I23: 0 | J23: 84 | K23: 1017.6 | L23: 5.8 | M23: 7
A24: 21 | H24: 21 | I24: 0 | J24: 87 | K24: 1017.6 | L24: 6.5 | M24: 7
A25: 22 | H25: 22 | I25: 0 | J25: 89 | K25: 1017.5 | L25: 6.5 | M25: 8
A26: 23 | H26: 23 | I26: 0 | J26: 89 | K26: 1017.4 | L26: 6.5 | M26: 8
A27: Mittel | B27: =ROUND(AVERAGE(B3:B26),1) -> 0.6 | C27: =ROUND(AVERAGE(C3:C26),1) -> 95.2 | D27: =ROUND(AVERAGE(D3:D26),1) -> 1025.2 | E27: =AVERAGE(E3:E26) -> 6.7 | F27: =ROUND(AVERAGE(F3:F26),1) -> 8 | H27: Mittel | I27: =ROUND(AVERAGE(I3:I26),1) -> 0.8 | J27: =ROUND(AVERAGE(J3:J26),1) -> 88.3 | K27: =ROUND(AVERAGE(K3:K26),1) -> 1015.5 | L27: =AVERAGE(L3:L26) -> 4.725 | M27: =ROUND(AVERAGE(M3:M26),1) -> 7.6
E29: 2013-05-01 | L29: 2013-04-28
A32: Stunde | B32: Wind | C32: Luftfeuchtigkeit | D32: Luftdruck | E32: Taupunkttemperatur | F32: Bewölkung | H32: Stunde | I32: Wind | J32: Luftfeuchtigkeit | K32: Luftdruck | L32: Taupunkttemperatur | M32: Bewölkung
A33: 00 | B33: 0 | C33: 92 | D33: 1017.3 | E33: 6.1 | F33: 8 | H33: 00 | I33: 0 | J33: 84 | K33: 1021.1 | L33: 5.6 | M33: 4
A34: 01 | B34: 1 | C34: 93 | D34: 1017.1 | E34: 5.6 | F34: 8 | H34: 01 | I34: 0 | J34: 88 | K34: 1021.2 | L34: 5.2 | M34: 6
A35: 02 | B35: 0 | C35: 90 | D35: 1016.5 | E35: 5.6 | F35: 8 | H35: 02 | I35: 1 | J35: 87 | K35: 1021.5 | L35: 4.8 | M35: 6
A36: 03 | B36: 1 | C36: 90 | D36: 1016.3 | E36: 6.2 | F36: 8 | H36: 03 | I36: 1 | J36: 87 | K36: 1021.7 | L36: 5.4 | M36: 6
A37: 04 | B37: 1 | C37: 86 | D37: 1015.7 | E37: 6.3 | F37: 8 | H37: 04 | I37: 0 | J37: 90 | K37: 1021.8 | L37: 4.9 | M37: 6
A38: 05 | B38: 1 | C38: 85 | D38: 1015.6 | E38: 6.3 | F38: 8 | H38: 05 | I38: 1 | J38: 91 | K38: 1022.1 | L38: 5.2 | M38: 7
A39: 06 | B39: 1 | C39: 85 | D39: 1015.7 | E39: 6.3 | F39: 8 | H39: 06 | I39: 0 | J39: 92 | K39: 1022.2 | L39: 5.6 | M39: 8
A40: 07 | B40: 0 | C40: 90 | D40: 1016.6 | E40: 7.2 | F40: 8 | H40: 07 | I40: 0 | J40: 93 | K40: 1022.6 | L40: 6.3 | M40: 8
A41: 08 | B41: 0 | C41: 88 | D41: 1016.5 | E41: 7.2 | F41: 8 | H41: 08 | I41: 0 | J41: 94 | K41: 1023.2 | L41: 6.8 | M41: 8
A42: 09 | B42: 1 | C42: 88 | D42: 1016.3 | E42: 7.9 | F42: 8 | H42: 09 | I42: 0 | J42: 94 | K42: 1023 | L42: 7 | M42: 8
A43: 10 | B43: 1 | C43: 88 | D43: 1016.6 | E43: 8.5 | F43: 8 | H43: 10 | I43: 0 | J43: 93 | K43: 1023 | L43: 8 | M43: 8
A44: 11 | B44: 0 | C44: 90 | D44: 1017.2 | E44: 9.6 | F44: 8 | H44: 11 | I44: 1 | J44: 88 | K44: 1022.4 | L44: 8.7 | M44: 8
A45: 12 | B45: 1 | C45: 81 | D45: 1016.8 | E45: 8.9 | F45: 8 | H45: 12 | I45: 1 | J45: 82 | K45: 1022 | L45: 8.3 | M45: 8
A46: 13 | B46: 1 | C46: 77 | D46: 1017.2 | E46: 9.1 | F46: 8 | H46: 13 | I46: 1 | J46: 76 | K46: 1021.5 | L46: 8.2 | M46: 8
A47: 14 | B47: 1 | C47: 75 | D47: 1017.3 | E47: 9.2 | F47: 8 | H47: 14 | I47: 1 | J47: 74 | K47: 1021.1 | L47: 7.8 | M47: 8
A48: 15 | B48: 1 | C48: 74 | D48: 1017.5 | E48: 8 | F48: 8 | H48: 15 | I48: 2 | J48: 82 | K48: 1021.8 | L48: 8.1 | M48: 8
A49: 16 | B49: 1 | C49: 70 | D49: 1017.8 | E49: 7.7 | F49: 8 | H49: 16 | I49: 1 | J49: 82 | K49: 1022 | L49: 7.4 | M49: 8
A50: 17 | B50: 0 | C50: 78 | D50: 1018.3 | E50: 9.4 | F50: 6 | H50: 17 | I50: 1 | J50: 87 | K50: 1022 | L50: 7.3 | M50: 8
A51: 18 | B51: 1 | C51: 65 | D51: 1018.5 | E51: 7.3 | F51: 7 | H51: 18 | I51: 0 | J51: 93 | K51: 1022 | L51: 7.5 | M51: 8
A52: 19 | B52: 0 | C52: 70 | D52: 1019.2 | E52: 7.1 | F52: 6 | H52: 19 | I52: 1 | J52: 95 | K52: 1022.6 | L52: 7.4 | M52: 8
A53: 20 | B53: 1 | C53: 79 | D53: 1019.9 | E53: 6.9 | F53: 7 | H53: 20 | I53: 1 | J53: 96 | K53: 1023.5 | L53: 7.2 | M53: 8
A54: 21 | B54: 1 | C54: 80 | D54: 1020.6 | E54: 6.7 | F54: 7 | H54: 21 | I54: 0 | J54: 96 | K54: 1023.9 | L54: 7.1 | M54: 8
A55: 22 | B55: 0 | C55: 83 | D55: 1020.9 | E55: 6.5 | F55: 7 | H55: 22 | I55: 1 | J55: 95 | K55: 1024.1 | L55: 6.8 | M55: 8
A56: 23 | B56: 0 | C56: 82 | D56: 1021.1 | E56: 6.1 | F56: 7 | H56: 23 | I56: 1 | J56: 96 | K56: 1024.3 | L56: 6.7 | M56: 8
A57: Mittel | B57: =ROUND(AVERAGE(B33:B56),1) -> 0.6 | C57: =ROUND(AVERAGE(C33:C56),1) -> 82.5 | D57: =ROUND(AVERAGE(D33:D56),1) -> 1017.6 | E57: =AVERAGE(E33:E56) -> 7.320833333 | F57: =ROUND(AVERAGE(F33:F56),1) -> 7.6 | H57: Mittel | I57: =ROUND(AVERAGE(I33:I56),1) -> 0.6 | J57: =ROUND(AVERAGE(J33:J56),1) -> 89 | K57: =ROUND(AVERAGE(K33:K56),1) -> 1022.4 | L57: =AVERAGE(L33:L56) -> 6.804166667 | M57: =ROUND(AVERAGE(M33:M56),1) -> 7.5
E59: 2013-04-29 | L59: 2013-04-30

Sheet Kurztabelle
A2: Wetterwarte: Köttewitz | L2: Monat: | M2: April | Y2: Jahr: | Z2: 2013
A4: Dat. | B4: TTT | C4: TxTx | D4: TnTn | E4: Tg | F4: Umin. | G4: UU | H4: NN | I4: RRRR | J4: Art | L4: sss | M4: PPPP | N4: eee | O4: fff | R4: Tage mit | V4: fk
J5: * | O5: Bft | P5: SS | Q5: Art ( D ) | R5: NE | S5: Ge | T5: Bf6 | U5: Bf8 | V5: Bft
A6: 01. | B6: -0.8 | C6: 0.9 | D6: -2.1 | E6: -2.2 | F6: 71 | G6: 86 | H6: 8 | I6: 0.1 | J6: S | L6: 1.3 | M6: 1011.5 | N6: -2.9 | O6: 1 | P6: 10 | Q6: * | R6: 1 | V6: 3 | AA6: max >=30,0°C | AB6: max >=25,0°C | AC6: max <0,0°C | AE6: RR >=0,1 mm | AF6: RR >=1,0 mm | AG6: RR >=3,0 mm | AH6: RR >=10,0 mm
A7: 02. | B7: -1.3 | C7: 2.3 | D7: -5.8 | E7: -6.1 | F7: 65 | G7: 84 | H7: 7.8 | I7: 0.1 | J7: S | L7: 2 | M7: 1014.9 | N7: -3.9 | O7: 1 | P7: 10 | Q7: * | R7: 1 | V7: 4 | AA7: =COUNTIF(C6:C15,">=30") -> 0 | AB7: =COUNTIF(C6:C15,">=25") -> 0 | AC7: =COUNTIF(C6:C15,"<0") -> 0 | AE7: =COUNTIF(I6:I15,">=0,1") -> 6 | AF7: =COUNTIF(I6:I15,">=1") -> 2 | AG7: =COUNTIF(I6:I15,">=3") -> 0 | AH7: =COUNTIF(I6:I15,">=10") -> 0
A8: 03. | B8: -0.3 | C8: 0.9 | D8: -1.1 | E8: -1.7 | F8: 73 | G8: 82 | H8: 8 | I8: . | L8: . | M8: 1017.5 | N8: -3.1 | O8: 2 | P8: 9 | Q8: * | V8: 4 | AA8: =COUNTIF(C18:C27,">=30") -> 0 | AB8: =COUNTIF(C18:C27,">=25") -> 1 | AC8: =COUNTIF(C18:C27,"<0") -> 0 | AE8: =COUNTIF(I18:I27,">=0,1") -> 5 | AF8: =COUNTIF(I18:I27,">=1") -> 3 | AG8: =COUNTIF(I18:I27,">=3") -> 3 | AH8: =COUNTIF(I18:I27,">=10") -> 0
A9: 04. | B9: 0.1 | C9: 1.3 | D9: -1.3 | E9: -1.7 | F9: 81 | G9: 88 | H9: 8 | I9: . | L9: . | M9: 1014.4 | N9: -1.8 | O9: 1 | P9: 8 | Q9: D | V9: 2 | AA9: =COUNTIF(C30:C39,">=30") -> 0 | AB9: =COUNTIF(C30:C39,">=25") -> 1 | AC9: =COUNTIF(C30:C39,"<0") -> 0 | AE9: =COUNTIF(I30:I39,">=0,1") -> 6 | AF9: =COUNTIF(I30:I39,">=1") -> 4 | AG9: =COUNTIF(I30:I39,">=3") -> 2 | AH9: =COUNTIF(I30:I39,">=10") -> 0
A10: 05. | B10: 0.9 | C10: 2.1 | D10: -0.2 | E10: -0.6 | F10: 83 | G10: 88 | H10: 8 | I10: 0.3 | J10: R | L10: . | M10: 1010.8 | N10: -0.8 | O10: 1 | P10: 8 | Q10: D | R10: 1 | V10: 3
A11: 06. | B11: 0.8 | C11: 1.6 | D11: 0.2 | E11: 0 | F11: 90 | G11: 94 | H11: 8 | I11: 1.2 | J11: R/S | L11: . | M11: 1017.6 | N11: 0 | O11: 1 | P11: 7 | Q11: D | R11: 1 | V11: 2 | AA11: min <0,0°C | AB11: min <0-10,0°C | AE11: rel.Lf. 14h >=70% | AG11: rel.Lf. 14h <=40%
A12: 07. | B12: 1.7 | C12: 6.3 | D12: -1.8 | E12: -2.8 | F12: 43 | G12: 78 | H12: 4.7 | I12: . | L12: 7.3 | M12: 1021.2 | N12: -2.1 | O12: 1 | P12: 8 | Q12: D | V12: 3 | AA12: =COUNTIF(D6:D15,"<0") -> 7 | AB12: =COUNTIF(D6:D15,"<=-10") -> 0 | AE12: =COUNTIF(F6:F15,">=70") -> 5 | AG12: =COUNTIF(F6:F15,"<=40") -> 1
A13: 08. | B13: 2.7 | C13: 8.9 | D13: -4 | E13: -5 | F13: 39 | G13: 67 | H13: 4.8 | I13: . | L13: 7.3 | M13: 1012.2 | N13: -3.4 | O13: 1 | P13: 0 | Q13: V | V13: 4 | AA13: =COUNTIF(D18:D27,"<0") -> 0 | AB13: =COUNTIF(D18:D27,"<=-10") -> 0 | AE13: =COUNTIF(F18:F27,">=70") -> 0 | AG13: =COUNTIF(F18:F27,"<=40") -> 1
A14: 09. | B14: 5.6 | C14: 11.2 | D14: 1.2 | E14: 0.6 | F14: 54 | G14: 72 | H14: 7.6 | I14: 0.5 | J14: R | L14: 6.3 | M14: 1006.1 | N14: 0.8 | O14: 1 | P14: 0 | Q14: R | R14: 1 | V14: 3 | AA14: =COUNTIF(D30:D39,"<0") -> 0 | AB14: =COUNTIF(D30:D39,"<=-10") -> 0 | AE14: =COUNTIF(F30:F39,">=70") -> 3 | AG14: =COUNTIF(F30:F39,"<=40") -> 2
A15: 10. | B15: 7.2 | C15: 12.6 | D15: 2.7 | E15: 1.1 | F15: 62 | G15: 84 | H15: 7.4 | I15: 1 | J15: R | L15: 1.2 | M15: 1006.9 | N15: 4.5 | O15: 1 | R15: 1 | V15: 3
A16: Su | B16: =SUM(B6:B15) -> 16.6 | C16: =SUM(C6:C15) -> 48.1 | D16: =SUM(D6:D15) -> -12.2 | E16: =SUM(E6:E15) -> -18.4 | F16: XXX | G16: =SUM(G6:G15) -> 823 | H16: =SUM(H6:H15) -> 72.3 | I16: =SUM(I6:I15) -> 3.2 | J16: =SUM(K6:K15) -> 0 | L16: =SUM(L6:L15) -> 25.4 | M16: =SUM(M6:M15) -> 10133.1 | N16: =SUM(N6:N15) -> -12.7 | O16: =SUM(O6:O15) -> 11 | P16: =COUNT(P6:P15) -> 9 | Q16: X | R16: =SUM(R6:R15) -> 6 | S16: =SUM(S6:S15) -> 0 | T16: =SUM(T6:T15) -> 0 | U16: =SUM(U6:U15) -> 0 | V16: XXX | AA16: ohne Sonne | AB16: Son. 0,1-0,9 | AC16: Son. >=10,0 | AE16: Sch. >=1 cm | AF16: Sch. >=3 cm | AG16: Sch. >=10 cm
A17: Mi | B17: =SUM(B16/10) -> 1.66 | C17: =AVERAGE(C16/10) -> 4.81 | D17: =AVERAGE(D16/10) -> -1.22 | E17: =E16/10 -> -1.84 | F17: XXX | G17: =AVERAGE(G16/10) -> 82.3 | H17: =AVERAGE(H16/10) -> 7.23 | I17: XXXXX | J17: XX | L17: XXXX | M17: =AVERAGE(M16/10) -> 1013.31 | N17: =AVERAGE(N16/10) -> -1.27 | O17: =O16/10 -> 1.1 | P17: XXX | Q17: X | R17: XX | S17: XX | T17: XX | U17: XX | V17: =AVERAGE(V6:V15) -> 3.1 | AA17: =COUNTIF(L6:L15,".") -> 4 | AB17: =COUNTIF(L6:L15,"<1") -> 0 | AC17: =COUNTIF(L6:L15,">=10") -> 0 | AE17: =COUNTIF(P6:P15,">=1") -> 7 | AF17: =COUNTIF(P6:P15,">=3") -> 7 | AG17: =COUNTIF(P6:P15,">=10") -> 2
A18: 11. | B18: 9.8 | C18: 14.4 | D18: 4.4 | E18: 1.7 | F18: 67 | G18: 80 | H18: 7 | I18: 3 | J18: R | L18: 2.3 | M18: 1005.4 | N18: 6.3 | O18: 1 | R18: 1 | V18: 5 | AA18: =COUNTIF(L18:L27,".") -> 1 | AB18: =COUNTIF(L18:L27,"<1") -> 0 | AC18: =COUNTIF(L18:L27,">=10") -> 1 | AE18: =COUNTIF(P18:P27,">=1") -> 0 | AF18: =COUNTIF(P18:P27,">=3") -> 0 | AG18: =COUNTIF(P18:P27,">=10") -> 0
A19: 12. | B19: 10.2 | C19: 12.4 | D19: 7.2 | E19: 5 | F19: 69 | G19: 83 | H19: 5.8 | I19: 4 | J19: R | L19: 1.3 | M19: 1003.5 | N19: 7.6 | O19: 1 | R19: 1 | V19: 4 | AA19: =COUNTIF(L30:L39,".") -> 2 | AB19: =COUNTIF(L30:L39,"<1") -> 1 | AC19: =COUNTIF(L30:L39,">=10") -> 2 | AE19: =COUNTIF(P30:P39,">=1") -> 0 | AF19: =COUNTIF(P30:P39,">=3") -> 0 | AG19: =COUNTIF(P30:P39,">=10") -> 0
A20: 13. | B20: 8.9 | C20: 13.4 | D20: 5.3 | E20: 4.4 | F20: 56 | G20: 76 | H20: 4.3 | I20: 3 | J20: R/G | L20: 3.6 | M20: 1016.3 | N20: 4.7 | O20: 1 | R20: 1 | V20: 5
A21: 14. | B21: 10 | C21: 16.9 | D21: 3.4 | E21: 2.2 | F21: 52 | G21: 78 | H21: 4 | I21: . | L21: 3 | M21: 1026.9 | N21: 5.9 | O21: 1 | V21: 2 | AA21: Max TT | AB21: Max TxTx | AC21: Min TgTg | AE21: Max RR
A22: 15. | B22: 14.4 | C22: 21 | D22: 6.4 | E22: 3.9 | F22: 43 | G22: 60 | H22: 3.1 | I22: . | L22: 11.7 | M22: 1023.1 | N22: 6.2 | O22: 1 | V22: 3 | AA22: =MAX(B6:B15,B18:B27,B30:B39) -> 19 | AB22: =MAX(C6:C15,C18:C27,C30:C39) -> 26.2 | AC22: =MIN(E6:E15,E18:E27,E30:E39) -> -6.1 | AE22: =MAX(I6:I15,I18:I27,I30:I39) -> 7.9
A23: 16. | B23: 14.9 | C23: 19.7 | D23: 10.7 | E23: 8.9 | F23: 42 | G23: 59 | H23: 6 | I23: 0.2 | J23: R | L23: 3.8 | M23: 1019.8 | N23: 6.7 | O23: 1 | R23: 1 | V23: 3 | AA23: Min TT | AB23: Min TnTn | AC23: Min U14 | AE23: Max SS
A24: 17. | B24: 15.5 | C24: 21.3 | D24: 10.6 | E24: 9.4 | F24: 42 | G24: 69 | H24: 6.8 | I24: . | L24: 5 | M24: 1022 | N24: 9.4 | O24: 1 | V24: 2 | AA24: =MIN(B6:B15,B18:B27,B30:B39) -> -1.3 | AB24: =MIN(D6:D15,D18:D27,D30:D39) -> -5.8 | AC24: =MIN(F6:F15,F18:F27,F30:F39) -> 32 | AE24: =MAX(P6:P15,P18:P27,P30:P39) -> 10
A25: 18. | B25: 19 | C25: 26.2 | D25: 12.2 | E25: 10 | F25: 41 | G25: 60 | H25: 6.4 | I25: 0.3 | J25: R | L25: 6.7 | M25: 1015.8 | N25: 10.7 | O25: 1 | R25: 1 | S25: 1 | V25: 3
A26: 19. | B26: 12.9 | C26: 16.3 | D26: 9.8 | E26: 8.9 | F26: 34 | G26: 53 | H26: 6.9 | I26: . | L26: 2 | M26: 1021 | N26: 3.5 | O26: 1 | V26: 3
A27: 20. | B27: 8.8 | C27: 11.3 | D27: 6.9 | E27: 6.7 | F27: 56 | G27: 69 | H27: 8 | I27: . | L27: . | M27: 1027.3 | N27: 3.5 | O27: 1 | V27: 4
A28: Su | B28: =SUM(B18:B27) -> 124.4 | C28: =SUM(C18:C27) -> 172.9 | D28: =SUM(D18:D27) -> 76.9 | E28: =SUM(E18:E27) -> 61.1 | F28: XXX | G28: =SUM(G18:G27) -> 687 | H28: =SUM(H18:H27) -> 58.3 | I28: =SUM(I18:I27) -> 10.5 | J28: =SUM(K18:K27) -> 0 | L28: =SUM(L18:L27) -> 39.4 | M28: =SUM(M18:M27) -> 10181.1 | N28: =SUM(N18:N27) -> 64.5 | O28: =SUM(O18:O27) -> 10 | P28: =COUNT(P18:P27) -> 0 | Q28: X | R28: =SUM(R18:R27) -> 5 | S28: =SUM(S18:S27) -> 1 | T28: =SUM(T18:T27) -> 0 | U28: =SUM(U18:U27) -> 0 | V28: XXX
A29: Mi | B29: =AVERAGE(B28/10) -> 12.44 | C29: =AVERAGE(C28/10) -> 17.29 | D29: =AVERAGE(D28/10) -> 7.69 | E29: =AVERAGE(E28/10) -> 6.11 | F29: XXX | G29: =AVERAGE(G28/10) -> 68.7 | H29: =AVERAGE(H28/10) -> 5.83 | I29: XXXXX | J29: XX | L29: XXXX | M29: =AVERAGE(M28/10) -> 1018.11 | N29: =AVERAGE(N28/10) -> 6.45 | O29: =O28/10 -> 1 | P29: XXX | Q29: X | R29: XX | S29: XX | T29: XX | U29: XX | V29: =AVERAGE(V18:V27) -> 3.4
A30: 21. | B30: 10.3 | C30: 18.1 | D30: 2.1 | E30: 2.2 | F30: 52 | G30: 73 | H30: 5 | I30: . | L30: 7.7 | M30: 1020.1 | N30: 5.4 | O30: 1 | V30: 4
A31: 22. | B31: 12.7 | C31: 18 | D31: 7.4 | E31: 6.7 | F31: 60 | G31: 75 | H31: 7.5 | I31: 0.6 | J31: R | L31: 2.3 | M31: 1015.2 | N31: 8.3 | O31: 1 | R31: 1 | V31: 3
A32: 23. | B32: 13.6 | C32: 19.4 | D32: 8.1 | E32: 7.8 | F32: 34 | G32: 64 | H32: 5.9 | I32: . | L32: 10.7 | M32: 1019.6 | N32: 5.9 | O32: 1 | V32: 4
A33: 24. | B33: 14.3 | C33: 20.1 | D33: 9.4 | E33: 8.9 | F33: 47 | G33: 67 | H33: 5.2 | I33: . | L33: 10.7 | M33: 1025.1 | N33: 8.1 | O33: 1 | V33: 3
A34: 25. | B34: 16 | C34: 22.5 | D34: 10.2 | E34: 8.3 | F34: 42 | G34: 67 | H34: 4.4 | I34: . | L34: 8.8 | M34: 1023.3 | N34: 9.6 | O34: 1 | V34: 3
A35: 26. | B35: 18.1 | C35: 25.7 | D35: 10.7 | E35: 8.3 | F35: 32 | G35: 59 | H35: 3.6 | I35: 2 | J35: R | L35: 7.8 | M35: 1009.7 | N35: 9 | O35: 1 | R35: 1 | V35: 3
A36: 27. | B36: 8.4 | C36: 13.2 | D36: 5.8 | E36: 6.7 | F36: 91 | G36: 95 | H36: 8 | I36: 7.9 | J36: R | L36: . | M36: 1006.1 | N36: 7.9 | O36: 1 | R36: 1 | V36: 3
A37: 28. | B37: 6.7 | C37: 10.3 | D37: 3.2 | E37: 3.9 | F37: 69 | G37: 88 | H37: 7.6 | I37: 0.5 | J37: R | L37: 0.7 | M37: 1015.5 | N37: 4.7 | O37: 1 | R37: 1 | V37: 3
A38: 29. | B38: 10.3 | C38: 14.1 | D38: 6.4 | E38: 5.6 | F38: 70 | G38: 82 | H38: 7.6 | I38: 1.1 | J38: R | L38: 1 | M38: 1017.6 | N38: 7.3 | O38: 1 | R38: 1 | V38: 3
A39: 30. | B39: 8.6 | C39: 12.6 | D39: 6.3 | E39: 5 | F39: 72 | G39: 89 | H39: 7.5 | I39: 6.8 | J39: R | L39: . | M39: 1022.4 | N39: 6.8 | O39: 1 | R39: 1 | V39: 3
A40: Su | B40: =SUM(B30:B39) -> 119 | C40: =SUM(C30:C39) -> 174 | D40: =SUM(D30:D39) -> 69.6 | E40: =SUM(E30:E39) -> 63.4 | F40: XXX | G40: =SUM(G30:G39) -> 759 | H40: =SUM(H30:H39) -> 62.3 | I40: =SUM(I30:I39) -> 18.9 | J40: =SUM(K30:K39) -> 0 | L40: =SUM(L30:L39) -> 49.7 | M40: =SUM(M30:M39) -> 10174.6 | N40: =SUM(N30:N39) -> 73 | O40: =SUM(O30:O39) -> 10 | P40: =COUNT(P30:P39) -> 0 | Q40: X | R40: =SUM(R30:R39) -> 6 | S40: =SUM(S30:S39) -> 0 | T40: =SUM(T30:T39) -> 0 | U40: =SUM(U30:U39) -> 0 | V40: XXX
A41: Mi | B41: =AVERAGE(B40/10) -> 11.9 | C41: =AVERAGE(C40/10) -> 17.4 | D41: 6.96 | E41: 6.34 | F41: XXX | G41: =AVERAGE(G40/10) -> 75.9 | H41: =AVERAGE(H40/10) -> 6.23 | I41: XXXXX | J41: XX | L41: XXXX | M41: =AVERAGE(M40/10) -> 1017.46 | N41: =AVERAGE(N40/10) -> 7.3 | O41: 1 | P41: XXX | Q41: X | R41: XX | S41: XX | T41: XX | U41: XX | V41: =AVERAGE(V30:V39) -> 3.2
A42: MSu | B42: =SUM(B16+B28+B40) -> 260 | C42: =SUM(C16+C28+C40) -> 395 | D42: =SUM(D16+D28+D40) -> 134.3 | E42: =SUM(E16+E28+E40) -> 106.1 | F42: XXX | G42: =SUM(G16+G28+G40) -> 2269 | H42: =SUM(H16+H28+H40) -> 192.9 | I42: =SUM(I16+I28+I40) -> 32.6 | J42: =SUM(J16+J28+J40) -> 0 | L42: =SUM(L16+L28+L40) -> 114.5 | M42: =SUM(M16+M28+M40) -> 30488.8 | N42: =SUM(N16+N28+N40) -> 124.8 | O42: XXX | P42: =SUM(P16+P28+P40) -> 9 | Q42: X | R42: =SUM(R16+R28+R40) -> 17 | S42: =SUM(S16+S28+S40) -> 1 | T42: =SUM(T16+T28+T40) -> 0 | U42: =SUM(U16+U28+U40) -> 0 | V42: XXX
A43: MMi | B43: =AVERAGE(B17,B29,B41) -> 8.666666667 | C43: =AVERAGE(C42/30) -> 13.16666667 | D43: =AVERAGE(D42/30) -> 4.476666667 | E43: =AVERAGE(E42/30) -> 3.536666667 | F43: XXX | G43: =AVERAGE(G42/30) -> 75.63333333 | H43: =AVERAGE(H42/30) -> 6.43 | I43: XXXXX | J43: XX | L43: XXXX | M43: =AVERAGE(M42/30) -> 1016.293333 | N43: =AVERAGE(N42/30) -> 4.16 | O43: =AVERAGE(O17,O29,O41) -> 1.033333333 | P43: XXX | Q43: X | R43: XX | S43: XX | T43: XX | U43: XX | V43: =AVERAGE(V17,V29,V41) -> 3.233333333
B45: Norm | C45: % v N.- | D45: Abw. | E45: Zahl der Tage | L45: Niederschlag mm | P45: Sonnensch.-dauer Std
B46: wert | C46: wert | D46: K | E46: Max.d.Lufttemp.°C | L46: >/= 0,1 | O46: =SUM(AE7:AE9) -> 17 | P46: ohne Sonne | V46: 7
A47: TTT | B47: 8.7 | C47: XXXX | D47: =SUM(B43-B47) -> -0.03333333333 | E47: Tropentag/Hitzetag | I47: =SUM(AA7:AA9) -> 0 | L47: >/= 1,0 | O47: =SUM(AF7:AF9) -> 9 | P47: 0,1 bis 0,9 | V47: 1
A48: RRR | B48: 47 | C48: =SUM(I42*100/B48) -> 69.36170213 | D48: XXXX | E48: Sommertag | I48: =SUM(AB7:AB9) -> 2 | L48: >/= 3,0 | O48: =SUM(AG7:AG9) -> 5 | P48: >/= 10,0 | V48: =SUM(AC17:AC19) -> 3
A49: sss | B49: 166 | C49: =SUM(L42*100/B49) -> 68.97590361 | D49: XXXX | E49: Eistag | I49: =SUM(AC7:AC9) -> 0 | L49: >/=10,0 | O49: =SUM(AH7:AH9) -> 0 | P49: Schneedecke cm
A50: astr. | D50: XXXX | E50: Min.d.Lufttemp.°C | L50: >/= 20,0 | O50: 0 | P50: >/= 1 | V50: =SUM(AE17:AE19) -> 7
A51: mgl. | B51: 414 | C51: =SUM(L42*100/B51) -> 27.65700483 | D51: XXXX | E51: Frosttag | I51: =SUM(AA12:AA14) -> 7 | L51: Rel. Luftfeuchte 14 Uhr | P51: >/= 3 | V51: =SUM(AF17:AF19) -> 7
A52: sss | D52: XXXX | E52: starker Eistag | I52: =SUM(AB12:AB14) -> 0 | L52: >/=70% | O52: =SUM(AE12:AE14) -> 8 | P52: >/= 10 | V52: =SUM(AG17:AG19) -> 2
L53: </=40% | O53: =SUM(AG12:AG14) -> 4

Sheet Sichtst.
E1: Sichtweitenstatistik
B5: Wetterstation: Köttewitz | F5: Monat: | G5: April | K5: Jahr: | L5: 2013
A7: Dat. | B7: Nebeldauer | C7: Nebel | D7: Dunst | E7: Sicht | F7: Sicht | G7: Sicht | H7: Sicht
B8: in St. u. Min. | E8: mittel | F8: normal | G8: gut | H8: sehr gut
A9: 01. | B9: - | C9: =IF(R9=1,1,"-") -> - | D9: =IF(R9=2,1,"-") -> - | E9: 1 | F9: - | G9: - | H9: - | N9: =IF(ISNUMBER(B9),B9*24," ") ->  | O9: =IF(ISNUMBER(N9),IF(N9<1,1," ")," ") ->  | P9: =IF(ISNUMBER(N9),IF(N9<8,2," ")," ") ->  | Q9: =IF(ISNUMBER(N9),IF(N9<24,3," ")," ") ->  | R9: =MIN(O9:Q9) -> 0
A10: 02. | B10: - | C10: - | D10: - | E10: 1 | F10: 1 | G10: - | H10: - | R10: 0
A11: 03. | B11: - | C11: - | D11: - | E11: 1 | F11: 1 | G11: - | H11: - | R11: 0
A12: 04. | B12: - | C12: - | D12: 1 | E12: 1 | F12: - | G12: - | H12: - | R12: 0
A13: 05. | B13: - | C13: - | D13: - | E13: 1 | F13: - | G13: - | H13: - | R13: 0
A14: 06. | B14: - | C14: - | D14: 1 | E14: 1 | F14: - | G14: - | H14: - | R14: 0
A15: 07. | B15: - | C15: - | D15: 1 | E15: 1 | F15: 1 | G15: - | H15: - | R15: 0
A16: 08. | B16: - | C16: - | D16: - | E16: - | F16: 1 | G16: - | H16: - | R16: 0
A17: 09. | B17: - | C17: - | D17: - | E17: 1 | F17: - | G17: - | H17: - | R17: 0
A18: 10. | B18: - | C18: - | D18: - | E18: - | F18: 1 | G18: - | H18: - | R18: 0
A19: 11. | B19: - | C19: - | D19: - | E19: - | F19: 1 | G19: - | H19: - | R19: 0
A20: 12. | B20: - | C20: - | D20: - | E20: 1 | F20: 1 | G20: - | H20: - | R20: 0
A21: 13. | B21: - | C21: - | D21: - | E21: - | F21: 1 | G21: - | H21: - | R21: 0
A22: 14. | B22: - | C22: - | D22: - | E22: - | F22: 1 | G22: 1 | H22: - | R22: 0
A23: 15. | B23: - | C23: - | D23: - | E23: - | F23: 1 | G23: 1 | H23: - | R23: 0
A24: 16. | B24: - | C24: - | D24: - | E24: - | F24: 1 | G24: - | H24: - | R24: 0
A25: 17. | B25: - | C25: - | D25: - | E25: - | F25: 1 | G25: - | H25: - | R25: 0
A26: 18. | B26: - | C26: - | D26: - | E26: - | F26: 1 | G26: - | H26: - | R26: 0
A27: 19. | B27: - | C27: - | D27: - | E27: - | F27: 1 | G27: - | H27: - | R27: 0
A28: 20. | B28: - | C28: - | D28: - | E28: - | F28: 1 | G28: - | H28: - | R28: 0
A29: 21. | B29: - | C29: - | D29: - | E29: - | F29: 1 | G29: - | H29: - | R29: 0
A30: 22. | B30: - | C30: - | D30: 1 | E30: 1 | F30: 1 | G30: - | H30: - | R30: 0
A31: 23. | B31: - | C31: - | D31: - | E31: 1 | F31: - | G31: - | H31: - | R31: 0
A32: 24. | B32: - | C32: - | D32: - | E32: 1 | F32: 1 | G32: - | H32: - | R32: 0
A33: 25. | B33: - | C33: - | D33: - | E33: 1 | F33: 1 | G33: - | H33: - | R33: 0
A34: 26. | B34: - | C34: - | D34: - | E34: 1 | F34: 1 | G34: - | H34: - | R34: 0
A35: 27. | B35: - | C35: - | D35: 1 | E35: 1 | F35: - | G35: - | H35: - | R35: 0
A36: 28. | B36: - | C36: - | D36: 1 | E36: 1 | F36: 1 | G36: - | H36: - | R36: 0
A37: 29. | B37: - | C37: - | D37: - | E37: 1 | F37: 1 | G37: - | H37: - | R37: 0
A38: 30. | B38: - | C38: - | D38: 1 | E38: 1 | F38: - | G38: - | H38: - | R38: 0
A39: Su. | B39: XXXXXXXXX | C39: =SUM(C9:C38) -> 0 | D39: 7 | E39: 18 | F39: 22 | G39: 2 | H39: 0
B41: Anzahl der Nebeltage : | E41: =SUM(C39) -> 0
B42: Anzahl der Tage Sicht >= 50 km : | E42: =SUM(G39,H39) -> 2

Sheet Monatsdiagramm
A1: Klimadiagramm | C1: Wetterstation Köttewitz | I1: (213 m ü. NHN)
A3: April 2013
C5: aktuell | D5: langj. Mittel | E5: Abw. vom lj. Mittel
B6: höchste Temperatur (°C): | C6: =MAX('Daten für Diagr.'!C2:C29) -> 26.2 | D6: am | E6: 2013-04-18
B7: mittlere Temperatur (°C): | C7: ='Daten für Diagr.'!B32 -> 8.666666667 | D7: =Kurztabelle!B47 -> 8.7 | E7: =C7-D7 -> -0.03333333333 | F7: K
B8: tiefste Temperatur (°C): | C8: =MIN('Daten für Diagr.'!D2:D29) -> -5.8 | D8: am | E8: 2013-04-02
B9: Niederschlagshöhe (mm): | C9: =Kurztabelle!I42 -> 32.6 | D9: =Kurztabelle!B48 -> 47 | E9: =100/D9*C9 -> 69.36170213 | F9: %
B10: Sonnenscheindauer (Std.)*: | C10: =Kurztabelle!L42 -> 114.5 | D10: =Kurztabelle!B49 -> 166 | E10: =100/D10*C10 -> 68.97590361 | F10: %
A66: *Die Wetterstation kann, durch geographische Hindernisse, nicht die maximal mögliche Sonnenscheindauer aufzeichnen. Es gilt ein Übergangsprozentsatz von: Nov - Feb 50 %; Mär & Okt 65 %; Apr & Sep 80 %; Mai - August 90 %.
A67: Diese Werte entsprechend annähernd 100 % (Normalwert Köttewitz). Nach 10 Jahren erfolgt die Umstellung des Prozentsatzes nach der örtlichen Aufzeichnung.

Sheet Daten für Diagr.
B1: Td | C1: Tmax | D1: Tmin | E1: RR | F1: Schnee | G1: Sonne | H1: Luftdr. | I1: MWT | J1: GWL | K1: Name | L1: Sonstiges
A2: 2013-04-01 | B2: -0.8 | C2: 0.9 | D2: -2.1 | E2: 0.1 | F2: 10 | G2: 1.3 | H2: 1011.5 | I2: 6.4
A3: 2013-04-02 | B3: -1.3 | C3: 2.3 | D3: -5.8 | E3: 0.1 | F3: 10 | G3: 2 | H3: 1014.9 | I3: 6.5 | K3: H Liebhild 2
A4: 2013-04-03 | B4: -0.3 | C4: 0.9 | D4: -1.1 | F4: 9 | G4: . | H4: 1017.5 | I4: 6.65
A5: 2013-04-04 | B5: 0.1 | C5: 1.3 | D5: -1.3 | F5: 8 | G5: . | H5: 1014.4 | I5: 6.8 | L5: Von 03:40 Uhr - 10:09 Uhr leichter Dunst.
A6: 2013-04-05 | B6: 0.9 | C6: 2.1 | D6: -0.2 | E6: 0.3 | F6: 8 | G6: . | H6: 1010.8 | I6: 6.95
A7: 2013-04-06 | B7: 0.8 | C7: 1.6 | D7: 0.2 | E7: 1.2 | F7: 7 | G7: . | H7: 1017.6 | I7: 7.1 | J7: Nz | K7: T Hansi | L7: Von 21:40 Uhr - 23:59 Uhr mäßiger Dunst. Von 02:20 Uhr - 20:39 Uhr leichter Dunst.
A8: 2013-04-07 | B8: 1.7 | C8: 6.3 | D8: -1.8 | F8: 8 | G8: 7.3 | H8: 1021.2 | I8: 7.25 | L8: Von 00:00 Uhr - 06:59 mäßiger Dunst. Von 07:00 Uhr - 08:59 Uhr leichter Dunst.
A9: 2013-04-08 | B9: 2.7 | C9: 8.9 | D9: -4 | F9: 0 | G9: 7.3 | H9: 1012.2 | I9: 7.4 | J9: WS | K9: T Ingo
A10: 2013-04-09 | B10: 5.6 | C10: 11.2 | D10: 1.2 | E10: 0.5 | G10: 6.3 | H10: 1006.1 | I10: 7.55 | L10: Beginn der Krokusblüte.
A11: 2013-04-10 | B11: 7.2 | C11: 12.6 | D11: 2.7 | E11: 1 | G11: 1.2 | H11: 1006.9 | I11: 7.7 | J11: TB | K11: T Joel
A12: 2013-04-11 | B12: 9.8 | C12: 14.4 | D12: 4.4 | E12: 3 | G12: 2.3 | H12: 1005.4 | I12: 7.85
A13: 2013-04-12 | B13: 10.2 | C13: 12.4 | D13: 7.2 | E13: 4 | G13: 1.3 | H13: 1003.5 | I13: 8 | J13: Wz | L13: Beginn des phänologischen Erstfrühlings.
A14: 2013-04-13 | B14: 8.9 | C14: 13.4 | D14: 5.3 | E14: 3 | G14: 3.6 | H14: 1016.3 | I14: 8.15 | J14: Wa | K14: H Notburga | L14: Beginn der Forsythienblüte.
A15: 2013-04-14 | B15: 10 | C15: 16.9 | D15: 3.4 | G15: 3 | H15: 1026.9 | I15: 8.3 | J15: SWa
A16: 2013-04-15 | B16: 14.4 | C16: 21 | D16: 6.4 | G16: 11.7 | H16: 1023.1 | I16: 8.45 | L16: Beginn der Weidenkätzchenblüte.
A17: 2013-04-16 | B17: 14.9 | C17: 19.7 | D17: 10.7 | E17: 0.2 | G17: 3.8 | H17: 1019.8 | I17: 8.65 | L17: Ergrünen des Dauergrünlandes.
A18: 2013-04-17 | B18: 15.5 | C18: 21.3 | D18: 10.6 | G18: 5 | H18: 1022 | I18: 8.8 | L18: Beginn der Feldbestellung.
A19: 2013-04-18 | B19: 19 | C19: 26.2 | D19: 12.2 | G19: 6.7 | H19: 1015.8 | I19: 8.95 | J19: NWz | K19: T Nils | L19: Beginn des allgemeinen Austriebes, darunter Apfel, Birne.
A20: 2013-04-19 | B20: 12.9 | C20: 16.3 | D20: 9.8 | G20: 2 | H20: 1021 | I20: 9.15 | J20: BM | K20: H Oxana | L20: Beginn der Birkenblüte.
A21: 2013-04-20 | B21: 8.8 | C21: 11.3 | D21: 6.9 | G21: 0 | H21: 1027.9 | I21: 9.3 | L21: Beginn des Austriebes der Himbeere.
A22: 2013-04-21 | B22: 10.3 | C22: 18.1 | D22: 2.1 | G22: 7.7 | H22: 1020.1 | I22: 9.45 | L22: Beginn des Graswachstums.
A23: 2013-04-22 | B23: 12.7 | C23: 18 | D23: 7.4 | E23: 0.6 | G23: 2.3 | H23: 1015.2 | I23: 9.65 | L23: Von 09:40 Uhr - 12:10 Uhr leichter trockener Dunst.
A24: 2013-04-23 | B24: 13.6 | C24: 19.4 | D24: 8.1 | G24: 10.7 | H24: 1019.6 | I24: 9.8 | J24: Wa | K24: H Paula | L24: Beginn der Löwenzahnblüte.
A25: 2013-04-24 | B25: 14.3 | C25: 20.1 | D25: 9.4 | G25: 10.7 | H25: 1025.1 | I25: 10 | L25: Beginn der Blattentfaltung bei Ahorn.
A26: 2013-04-25 | B26: 16 | C26: 22.5 | D26: 10.2 | G26: 8.8 | H26: 1023.3 | I26: 10.15 | L26: Beginn der Birnenblüte.
A27: 2013-04-26 | B27: 18.1 | C27: 25.7 | D27: 10.7 | E27: 2 | G27: 7.8 | H27: 1009.7 | I27: 10.3 | J27: TrW | K27: T Stephan | L27: Vollblüte Süßkirsche.
A28: 2013-04-27 | B28: 8.4 | C28: 13.2 | D28: 5.8 | E28: 7.9 | G28: 0 | H28: 1006.1 | I28: 10.5 | L28: Von 04:50 Uhr - 11:59 Uhr; 18:00 Uhr - 23:59 Uhr leichter Dunst (Sprühregen).
A29: 2013-04-28 | B29: 6.7 | C29: 10.3 | D29: 3.2 | E29: 0.5 | G29: 0.7 | H29: 1015.5 | I29: 10.7 | J29: NWz | K29: T Ullrich | L29: Von 00:00 Uhr - 10:19 Uhr leichter Dunst (Sprühregen).
A30: 2013-04-29 | B30: 10.3 | C30: 14.1 | D30: 6.4 | E30: 1.1 | G30: 1 | H30: 1017.6 | I30: 10.9
A31: 2013-04-30 | B31: 8.6 | C31: 12.6 | D31: 6.3 | E31: 6.8 | G31: 0 | H31: 1022.4 | I31: 11.1 | L31: Von 21:00 Uhr - 23:59 Uhr starker Dunst. Von 20:00 Uhr - 20:59 Uhr mäßiger Dunst. Von 19:40 Uhr - 19:59 Uhr leichter Dunst.
A32: Durchschnitt | B32: =AVERAGE(B2:B31) -> 8.666666667 | C32: =AVERAGE(C2:C31) -> 13.16666667 | D32: =AVERAGE(D2:D31) -> 4.476666667 | H32: =AVERAGE(H2:H31) -> 1016.313333 | I32: =AVERAGE(I2:I31) -> 8.615
A33: Mittel | B33: 8.7 | E33: 47 | F33: - | G33: 166 | H33: 1014.5
